bitfinex/quotes_ETHUSD_20220119
["timestamp","ask_amount","ask_price","bid_price","bid_amount"]
[1642603012596,0.00170527,3147.3,3146.9,0.2376]
[1642603013000,0.00113685,3147.2,3146.9,0.2376]
[1642603013204,1.3578009,3147.0,3146.9,0.2376]
[1642603013602,0.127,3147.0,3146.9,0.2376]
[1642603013801,1.00397897,3147.7,3146.9,0.2376]
[1642603013802,0.13097897,3147.7,3146.9,0.2376]
[1642603014002,0.00397897,3147.7,3146.9,0.2376]
[1642603014203,0.00341054,3147.6,3147.0,1.18035905]
[1642603014601,0.127,3147.8,3147.0,1.18035905]
[1642603014602,0.00284212,3147.5,3147.0,2.60619668]
[1642603015003,0.0022737,3147.4,3146.9,0.2376]
[1642603015450,0.00170527,3147.3,3146.9,0.2376]
[1642603015750,0.00113685,3147.2,3146.9,0.2376]
[1642603016049,1.35571773,3147.1,3146.1,0.382]
[1642603016454,4.00479852,3147.0,3146.2,0.00454739]
[1642603016652,0.127,3147.0,3146.2,0.00454739]
[1642603016851,0.127,3147.0,3146.1,0.00511581]
[1642603017456,0.127,3147.0,3146.2,1.43658602]
[1642603017653,0.127,3147.5,3146.2,1.43658602]
[1642603017852,0.127,3147.5,3146.3,0.00397896]
[1642603018055,0.0022737,3147.4,3146.3,0.00397896]
[1642603018454,1.12332766,3147.2,3146.3,0.00397896]
[1642603018856,3.69097874,3147.1,3146.3,0.00397896]
[1642603019120,0.127,3147.0,3146.1,0.00511581]
[1642603019320,2.21818766,3147.2,3146.1,0.00511581]
[1642603019321,0.127,3147.1,3146.1,0.00511581]
[1642603019520,1.37696136,3147.0,3146.1,0.00511581]
[1642603019720,1.34982818,3146.2,3146.1,0.00511581]
[1642603019920,3.94621688,3146.9,3146.1,0.00511581]
[1642603020125,3.94621688,3146.9,3145.9,0.00625266]
[1642603020126,0.427,3146.9,3145.9,0.00625266]
[1642603020322,0.427,3146.9,3145.4,0.00909477]
[1642603020520,0.3,3146.9,3145.4,0.00909477]
[1642603020921,0.127,3147.0,3145.4,0.00909477]
[1642603021324,0.127,3147.0,3146.3,1.26169708]
[1642603021526,3.6208737,3147.4,3146.3,1.26169708]
[1642603021527,0.127,3147.3,3146.3,1.26169708]
[1642603021725,3.6208737,3147.4,3146.3,1.26169708]
[1642603021726,3.6208737,3147.4,3146.4,0.00341054]
[1642603021923,0.00113685,3147.2,3146.4,0.00341054]
[1642603022123,0.00170527,3147.3,3146.4,0.00341054]
[1642603022325,0.127,3147.2,3146.4,0.00341054]
[1642603022526,0.12813685,3147.2,3146.4,0.00341054]
[1642603023353,0.12813685,3147.2,3145.8,0.00682108]
[1642603023852,0.12813685,3147.2,3145.7,0.0073895]
[1642603023853,1.30122673,3147.1,3145.7,0.0073895]
[1642603024056,3.35823322,3147.0,3145.7,0.0073895]
[1642603024253,0.127,3147.0,3145.7,0.0073895]
[1642603024452,0.127,3147.0,3145.3,0.0096632]
[1642603024453,1.0,3146.9,3145.3,0.0096632]
[1642603024652,0.127,3146.8,3145.3,0.0096632]
[1642603024853,1.71684,3146.8,3145.3,0.0096632]
[1642603025060,0.92189,3146.8,3145.5,1.52161281]
[1642603025558,0.92189,3146.8,3145.6,0.00795793]
[1642603025958,1.11965281,3146.0,3145.6,0.00795793]
[1642603026160,4.64705536,3146.7,3145.6,0.00795793]
[1642603026161,0.127,3146.6,3145.6,0.00795793]
[1642603026358,0.127,3146.6,3145.3,0.0096632]
[1642603026359,0.79494,3146.5,3145.3,0.0096632]
[1642603026605,0.127,3146.4,3145.3,0.0096632]
[1642603026805,6.35,3146.3,3145.2,0.14206317]
[1642603027009,1.92894465,3146.1,3145.2,0.0038632]
[1642603027207,1.38227553,3146.0,3145.2,0.0038632]
[1642603027408,0.79506,3145.9,3145.2,0.0038632]
[1642603027608,0.79847054,3145.9,3145.2,0.0038632]
[1642603027811,0.00284212,3145.8,3145.2,0.0038632]
[1642603028009,0.79511,3145.7,3145.2,0.0038632]
[1642603028211,0.127,3145.6,3145.2,0.0038632]
[1642603028409,0.12870527,3145.6,3145.2,0.0038632]
[1642603028609,0.79629685,3145.5,3145.2,0.0038632]
[1642603028811,0.00113685,3145.5,3145.2,0.0038632]
[1642603029013,0.00113685,3145.5,3145.3,2.70188754]
[1642603029211,0.00113685,3145.5,3145.4,0.15888]
[1642603029418,0.00113685,3145.5,3145.4,6.50888]
[1642603029914,0.00113685,3145.5,3145.4,9.74011322]
[1642603030114,0.00113685,3145.5,3145.4,7.50888]
[1642603030359,0.00113685,3145.5,3145.4,29.35011322]
[1642603030555,3.685e-05,3145.5,3145.4,29.85531322]
[1642603030756,3.685e-05,3145.5,3145.4,30.00445514]
[1642603031360,3.8264,3147.4,3145.6,0.03935811]
[1642603031561,0.127,3147.3,3146.3,0.7945462]
[1642603031761,0.13723162,3147.3,3146.4,3.24150079]
[1642603031962,0.13723162,3147.3,3147.2,1.281165]
[1642603032161,0.01023162,3147.3,3147.2,1.281165]
[1642603032361,0.01023162,3147.3,3147.2,4.19522195]
[1642603032972,0.01023162,3147.3,3147.2,4.35410195]
[1642603033161,0.01023162,3147.3,3147.2,5.73610195]
[1642603033561,0.01023162,3147.3,3147.2,8.86250195]
[1642603033761,0.01023162,3147.3,3147.2,10.32461275]
[1642603034103,0.01023162,3147.3,3147.1,0.2423]
[1642603034500,0.127,3147.9,3147.1,0.2423]
[1642603034501,0.0096632,3147.2,3147.1,0.2423]
[1642603035103,0.0096632,3147.2,3147.1,5.37412671]
[1642603035303,0.0096632,3147.2,3147.1,6.91928001]
[1642603036307,0.0096632,3147.2,3147.1,7.07816001]
[1642603036706,0.127,3148.8,3147.9,1.3597803]
[1642603036909,0.79434,3148.5,3147.9,1.3597803]
[1642603037108,0.00454739,3148.0,3147.9,1.3597803]
[1642603037708,0.00454739,3148.0,3147.3,3.23123322]
[1642603037954,0.00454739,3148.0,3147.2,0.7943247]
[1642603038156,0.00397896,3147.9,3147.2,0.7943247]
[1642603038553,0.00341054,3147.8,3147.3,3.278818]
[1642603038752,0.00341054,3147.8,3147.4,1.26504179]
[1642603038952,0.127,3148.4,3147.5,3.44201701]
[1642603038953,0.00284212,3147.7,3147.5,3.44201701]
[1642603039355,0.127,3148.6,3147.5,3.44201701]
[1642603039356,0.00227369,3147.6,3147.5,3.44201701]
[1642603039556,0.00227369,3147.6,3147.5,11.33286701]
[1642603039557,7.369e-05,3147.6,3147.5,11.33286701]
[1642603039756,0.00227369,3147.6,3147.5,11.45686701]
[1642603040053,0.00227369,3147.6,3147.5,11.40766701]
[1642603040254,0.00227369,3147.6,3147.5,11.41006701]
[1642603040454,0.00227369,3147.6,3147.5,23.66926701]
[1642603040660,0.00227369,3147.6,3147.5,5.05686701]
[1642603040854,0.00227369,3147.6,3147.5,6.48667392]
[1642603041055,0.127,3149.3,3147.6,6.3522]
[1642603041257,0.127,3149.3,3147.5,6.49467392]
[1642603041258,0.127,3149.3,3147.9,19.4039745]
[1642603041466,0.00518951,3148.9,3148.0,5.59857348]
[1642603041704,0.00518951,3148.9,3148.1,1.0]
[1642603041906,0.00462108,3148.8,3148.3,3.70848246]
[1642603042306,0.00405266,3148.7,3148.4,3.39008322]
[1642603042508,0.00405266,3148.7,3148.4,4.77208322]
[1642603042705,0.00348424,3148.6,3148.4,4.61323322]
[1642603042906,0.00348424,3148.6,3148.5,9.74003322]
[1642603043110,0.00457913,3149.4,3148.5,11.12203322]
[1642603043311,0.00457913,3149.4,3149.3,1.28198318]
[1642603043510,0.00457913,3149.4,3149.3,10.9452164]
[1642603043711,0.35806481,3149.9,3149.4,6.35]
[1642603043910,0.35806481,3149.9,3149.3,5.0540164]
[1642603043911,0.35806481,3149.9,3149.5,3.61323322]
[1642603044107,0.35806481,3149.9,3149.3,2.45370285]
[1642603044108,0.35806481,3149.9,3149.6,0.382]
[1642603044309,0.35806481,3149.9,3149.5,0.382]
[1642603044508,0.35806481,3149.9,3149.1,1.39892664]
[1642603044509,0.13506481,3149.9,3149.2,0.7938465]
[1642603044710,0.13506481,3149.9,3148.7,2.3811772]
[1642603044711,3.36629803,3149.9,3148.7,2.3811772]
[1642603044909,3.36629803,3149.9,3149.3,0.0022737]
[1642603044910,0.13506481,3149.9,3149.3,0.0022737]
[1642603045112,1.52960989,3149.5,3148.8,0.00511582]
[1642603045348,1.52960989,3149.5,3148.3,0.17124926]
[1642603045349,1.52960989,3149.5,3148.7,0.00568424]
[1642603045754,1.52960989,3149.5,3148.6,1.18372731]
[1642603045958,1.58886481,3149.9,3148.7,0.00568424]
[1642603046154,1.28886481,3149.9,3148.7,0.00568424]
[1642603046554,1.28886481,3149.9,3148.7,0.79965924]
[1642603046756,1.28886481,3149.9,3149.3,1.23325398]
[1642603046757,0.13506481,3149.9,3149.3,1.23325398]
[1642603046961,0.13506481,3149.9,3149.3,2.78522881]
[1642603047154,0.13506481,3149.9,3149.4,0.16050527]
[1642603047356,0.13506481,3149.9,3149.4,3.66307301]
[1642603047554,0.13506481,3149.9,3149.5,0.00113685]
[1642603048154,0.13506481,3149.9,3149.8,1.37172824]
[1642603048356,0.13506481,3149.9,3149.8,4.2866464]
[1642603048559,0.13620165,3149.9,3149.8,4.2866464]
[1642603048956,0.13620165,3149.9,3149.8,1.37172824]
[1642603049403,0.13620165,3149.9,3149.8,4.28677899]
[1642603050411,0.795,3150.0,3149.9,6.35]
[1642603050609,0.795,3150.0,3149.9,29.7753452]
[1642603051211,0.795,3150.0,3149.9,11.1653452]
[1642603051408,0.795,3150.0,3149.9,7.52558]
[1642603051608,0.795,3150.0,3149.9,1.33438]
[1642603051809,0.795,3150.0,3149.9,0.382]
[1642603052009,0.795,3150.0,3149.5,0.00113685]
[1642603052412,0.795,3150.0,3149.4,3.23381095]
[1642603052613,0.795,3150.0,3149.5,0.00227369]
[1642603052877,0.795,3150.0,3149.5,1.3111752]
[1642603053069,0.795,3150.0,3149.5,1.1523752]
[1642603053269,0.795,3150.0,3149.6,0.79542527]
[1642603053471,0.795,3150.0,3149.7,0.1588]
[1642603053669,0.795,3150.0,3149.9,5.0088]
[1642603054868,0.795,3150.0,3149.9,0.1588]
[1642603055069,0.795,3150.0,3149.7,0.38313684]
[1642603056074,1.58902,3150.0,3149.7,0.00113684]
[1642603056272,0.03962,3149.9,3149.7,0.00113684]
[1642603056478,0.03962,3149.9,3149.2,1.17369893]
[1642603056712,0.795,3150.0,3149.2,1.17767789]
[1642603057008,0.795,3150.0,3149.3,2.93036794]
[1642603057406,0.795,3150.0,3149.4,0.00284211]
[1642603057407,0.03962,3149.9,3149.4,0.00284211]
[1642603057610,0.33962,3149.9,3149.4,0.00284211]
[1642603057806,0.33962,3149.9,3149.6,1.0]
[1642603058211,0.33962,3149.9,3149.7,0.00113684]
[1642603058412,1.13366,3149.9,3149.7,0.00113684]
[1642603058612,8.32671662,3149.8,3149.7,0.00113684]
[1642603058812,1.52541863,3149.8,3149.7,0.00113684]
[1642603059017,1.58898,3150.0,3149.7,1.00113684]
[1642603059214,0.795,3150.0,3149.7,1.00113684]
[1642603059411,0.795,3150.0,3149.7,0.00113684]
[1642603059611,0.10147589,3150.2,3150.0,0.205]
[1642603059811,3.58962,3150.1,3150.0,0.205]
[1642603060011,0.10147589,3150.2,3149.2,6.35]
[1642603060212,0.10147589,3150.2,3150.1,0.205]
[1642603060657,0.10147589,3150.2,3149.4,5.2559]
[1642603060857,0.05,3150.5,3150.2,0.10352411]
[1642603061058,1.50809984,3150.5,3150.2,0.10352411]
[1642603061257,0.00170527,3150.4,3150.2,0.10352411]
[1642603061459,0.00170527,3150.4,3149.5,0.00341054]
[1642603061460,7.14401,3150.3,3149.5,0.00341054]
[1642603061666,7.14514685,3150.3,3149.5,0.00341054]
[1642603061860,7.14514685,3150.3,3148.7,0.9424]
[1642603061861,7.14514685,3150.3,3148.8,0.00738951]
[1642603062163,1.31355684,3150.0,3149.0,1.52049631]
[1642603062561,1.31355684,3150.0,3149.1,0.79954424]
[1642603062761,1.31355684,3150.0,3149.1,0.00568424]
[1642603062964,1.31355684,3150.0,3148.8,0.01215201]
[1642603062965,1.31355684,3150.0,3149.2,0.00511581]
[1642603063162,1.31355684,3150.0,3148.9,0.00682108]
[1642603063564,0.79397,3149.9,3148.9,0.00682108]
[1642603063763,3.7986,3150.2,3148.9,0.00682108]
[1642603063964,0.00113685,3150.3,3149.6,0.01229205]
[1642603064206,0.00113685,3150.3,3149.0,0.44286233]
[1642603064207,0.6078,3151.4,3150.3,4.1]
[1642603064404,0.6078,3151.4,3150.4,3.59300314]
[1642603064601,0.00341054,3150.9,3150.4,0.382]
[1642603064801,0.00341054,3150.9,3150.8,1.41673308]
[1642603065000,0.6078,3151.4,3150.8,1.41673308]
[1642603065399,0.6078,3151.4,3150.5,0.7935336]
[1642603065604,0.6078,3151.4,3150.6,22.20300314]
[1642603065806,3.21100314,3151.3,3150.6,0.382]
[1642603066018,0.6078,3151.4,3150.6,0.382]
[1642603066407,0.6078,3151.4,3150.7,2.77155128]
[1642603066607,0.6078,3151.4,3150.7,4.74037018]
[1642603067209,0.6078,3151.4,3150.7,0.382]
[1642603067605,0.6078,3151.4,3150.7,1.9689309]
[1642603068253,0.6078,3151.4,3150.9,5.81685465]
[1642603068454,0.6078,3151.4,3150.9,1.26685465]
[1642603068653,0.6078,3151.4,3150.8,1.24640034]
[1642603068654,2.54232466,3151.0,3150.8,1.24640034]
[1642603068855,2.54232466,3151.0,3150.8,1.62840034]
[1642603069056,2.54232466,3151.0,3150.8,2.42185034]
[1642603069057,0.00341054,3150.9,3150.8,2.42185034]
[1642603069254,0.00341054,3150.9,3150.8,7.38065034]
[1642603069459,0.00341054,3150.9,3150.8,7.22185034]
[1642603069757,0.003,3152.0,3151.0,6.35]
[1642603069956,0.7496276,3152.9,3151.5,0.01243757]
[1642603070158,12.29435466,3153.2,3152.1,1.09600101]
[1642603070357,3.987,3153.2,3152.1,1.09600101]
[1642603070555,0.01250531,3153.1,3152.1,4.30700415]
[1642603070754,0.01250531,3153.1,3152.1,1.09600101]
[1642603070955,0.79331,3152.5,3152.0,0.6014]
[1642603071158,5.29358205,3152.5,3151.4,0.2778]
[1642603071359,0.00852635,3152.4,3151.4,0.2778]
[1642603071814,1.28926891,3152.5,3151.4,0.2778]
[1642603071815,0.00795793,3152.3,3151.4,0.2778]
[1642603072020,0.79345,3151.9,3151.4,0.2778]
[1642603072317,1.55081094,3151.8,3151.4,0.2778]
[1642603072515,0.30511581,3151.8,3151.4,0.0001]
[1642603072715,0.00454738,3151.7,3151.4,0.0001]
[1642603072919,0.00454738,3151.7,3150.3,0.52019997]
[1642603073119,0.79372,3151.4,3150.3,0.51695607]
[1642603073320,1.09372,3151.4,3150.4,0.00284212]
[1642603073518,1.19297351,3151.1,3150.4,0.00284212]
[1642603073718,0.00227369,3151.3,3150.4,0.00284212]
[1642603074119,5.1131,3152.3,3150.4,0.00284212]
[1642603074120,0.00170527,3151.2,3150.5,20.5788119]
[1642603074321,0.00170527,3151.2,3150.7,0.79327]
[1642603074523,0.79329,3152.4,3150.8,3.56710652]
[1642603074524,0.00113684,3151.1,3150.8,3.56710652]
[1642603074718,0.00113684,3151.1,3151.0,5.8588]
[1642603074921,1.42686792,3152.3,3151.3,1.31978789]
[1642603075221,1.58689,3152.1,3151.3,1.31978789]
[1642603075464,0.79342,3152.2,3151.3,1.31978789]
[1642603075665,0.00625266,3152.0,3151.3,1.31978789]
[1642603075964,0.00568423,3151.9,3151.3,1.31978789]
[1642603076168,0.00568423,3151.9,3151.4,3.09379161]
[1642603076369,0.00511581,3151.8,3151.3,1.31978789]
[1642603076565,0.00511581,3151.8,3151.1,3.15503278]
[1642603076865,2.96775515,3152.5,3150.7,0.382]
[1642603076866,0.00454738,3151.7,3150.7,0.382]
[1642603077267,0.79353,3151.5,3150.7,0.382]
[1642603077467,1.73992691,3151.3,3150.7,0.382]
[1642603077668,1.18923354,3151.1,3150.6,0.00170527]
[1642603078070,0.00170527,3151.2,3150.2,3.18908549]
[1642603078271,0.00170527,3151.2,3150.3,0.00341054]
[1642603078472,1.09482684,3151.1,3150.3,0.00341054]
[1642603078769,2.18861684,3151.1,3150.1,0.00454739]
[1642603079409,1.58763,3151.0,3150.1,0.00454739]
[1642603079615,0.3,3150.9,3150.0,0.00511581]
[1642603079809,1.58763,3151.0,3150.0,0.00511581]
[1642603079810,0.79384,3151.0,3150.0,0.00511581]
[1642603080011,0.00113684,3151.1,3150.0,0.00511581]
[1642603080213,0.00113684,3151.1,3150.2,1.30238301]
[1642603080411,1.97457776,3151.1,3150.0,0.00511581]
[1642603080612,3.36815776,3151.1,3150.3,0.00341054]
[1642603080812,4.16194776,3151.1,3149.9,0.00568424]
[1642603081213,3.36815776,3151.1,3150.2,1.38697949]
[1642603081516,3.36815776,3151.1,3150.3,2.86930039]
[1642603081517,0.00113684,3151.1,3150.3,2.86930039]
[1642603081912,0.00113684,3151.1,3150.4,0.00284212]
[1642603082314,0.00113684,3151.1,3150.5,1.49274188]
[1642603082513,0.00113684,3151.1,3150.7,1.34840684]
[1642603082717,0.00113684,3151.1,3150.8,3.18510652]
[1642603082957,0.00113684,3151.1,3150.7,1.34840684]
[1642603083758,0.00113684,3151.1,3151.0,3.6914353]
[1642603083959,0.00113684,3151.1,3151.0,1.2914353]
[1642603084158,0.00113684,3151.1,3150.7,1.34840684]
[1642603084359,0.00113684,3151.1,3150.6,0.00170527]
[1642603084766,0.79479684,3151.1,3150.5,0.0022737]
[1642603084958,0.79479684,3151.1,3149.8,5.1728632]
[1642603084959,1.09479684,3151.1,3150.1,0.00454739]
[1642603085159,0.30113684,3151.1,3150.1,1.3117464]
[1642603085559,0.30113684,3151.1,3150.5,1.13240314]
[1642603085560,0.00113684,3151.1,3150.5,1.13240314]
[1642603085760,0.79372,3151.0,3150.5,1.13240314]
[1642603085959,0.79372,3151.0,3150.6,0.00170527]
[1642603086801,0.79371,3150.8,3150.6,0.00170527]
[1642603087003,0.79372,3151.0,3150.6,0.00170527]
[1642603087604,0.00113684,3151.1,3150.6,0.00170527]
[1642603087803,0.00113684,3151.1,3150.6,1.58872527]
[1642603088209,0.00113684,3151.1,3150.7,0.00113685]
[1642603088606,0.00113684,3151.1,3150.6,0.00170527]
[1642603088807,0.00113684,3151.1,3150.2,1.58702]
[1642603089006,0.79359,3151.0,3150.3,0.00341054]
[1642603089212,0.79359,3151.0,3150.4,0.1588]
[1642603089409,0.00113684,3151.1,3150.3,0.00341054]
[1642603089608,0.00113684,3151.1,3150.5,0.0022737]
[1642603089811,0.00113684,3151.1,3150.3,0.16221054]
[1642603090012,0.00113684,3151.1,3150.6,0.79351]
[1642603090210,0.00113684,3151.1,3151.0,1.15132962]
[1642603093061,0.00113684,3151.1,3151.0,1.10132962]
[1642603093263,0.00113684,3151.1,3150.7,1.26090317]
[1642603093458,1.58840684,3151.1,3150.8,0.04542137]
[1642603094307,1.58840684,3151.1,3150.7,1.26090317]
[1642603094505,0.79478684,3151.1,3150.7,1.26090317]
[1642603094706,0.3,3151.0,3150.7,0.00113685]
[1642603094905,1.88844684,3151.1,3150.9,1.17054512]
[1642603095107,1.58844684,3151.1,3150.9,1.17054512]
[1642603095507,1.88844684,3151.1,3150.9,1.17054512]
[1642603095708,1.58752,3151.0,3150.9,1.17054512]
[1642603096610,1.58752,3151.0,3150.9,2.39669677]
[1642603096809,1.58844684,3151.1,3150.9,2.39669677]
[1642603097009,1.58844684,3151.1,3150.9,1.17054512]
[1642603097210,1.58844684,3151.1,3150.3,0.382]
[1642603097211,0.79372,3151.0,3150.3,0.382]
[1642603097612,0.79377,3150.8,3150.4,0.00284212]
[1642603098061,0.79377,3150.8,3150.6,1.24312144]
[1642603098463,0.79377,3150.8,3150.7,1.25973266]
[1642603098665,1.09377,3150.8,3150.7,1.25973266]
[1642603098863,0.79377,3150.8,3150.7,1.25973266]
[1642603099065,0.00113684,3151.1,3150.7,1.25973266]
[1642603100267,0.79468684,3151.1,3150.7,1.25973266]
[1642603100866,0.79468684,3151.1,3150.8,0.382]
[1642603100867,0.00113684,3151.1,3150.8,0.382]
[1642603101267,0.00113684,3151.1,3150.8,3.56710652]
[1642603101705,0.00113684,3151.1,3150.9,0.03895622]
[1642603101909,3.684e-05,3151.1,3151.0,6.732]
[1642603102107,3.684e-05,3151.1,3151.0,28.52710652]
[1642603102309,3.684e-05,3151.1,3151.0,29.52710652]
[1642603102510,3.684e-05,3151.1,3151.0,26.342]
[1642603102912,3.684e-05,3151.1,3151.0,26.5008]
[1642603103115,3.684e-05,3151.1,3151.0,27.29404]
[1642603103715,3.684e-05,3151.1,3151.0,7.68404]
[1642603103913,3.684e-05,3151.1,3151.0,0.382]
[1642603104612,3.684e-05,3151.1,3151.0,0.5408]
[1642603104813,3.684e-05,3151.1,3151.0,9.62173283]
[1642603105013,3.684e-05,3151.1,3151.0,6.8908]
[1642603105213,3.684e-05,3151.1,3151.0,7.8908]
[1642603105449,3.684e-05,3151.1,3151.0,7.9693]
[1642603105655,3.684e-05,3151.1,3151.0,8.76274]
[1642603106753,3.684e-05,3151.1,3151.0,12.09429796]
[1642603108460,0.79327,3152.3,3151.2,0.7932523]
[1642603108661,2.3985,3152.6,3151.4,1.20755449]
[1642603108859,2.3985,3152.6,3152.4,1.56455657]
[1642603109107,3.6177439,3152.8,3152.4,1.56455657]
[1642603109108,0.0032439,3152.8,3152.4,1.56455657]
[1642603109507,0.0085632,3152.6,3152.4,1.56455657]
[1642603109709,0.8017632,3152.6,3152.4,1.56455657]
[1642603109908,0.00799477,3152.5,3152.4,1.56455657]
[1642603110707,2.75799477,3152.5,3152.4,1.56455657]
[1642603110912,2.75799477,3152.5,3151.8,0.382]
[1642603110913,0.80124477,3152.5,3151.8,0.382]
[1642603111111,0.79331,3152.4,3151.8,0.382]
[1642603111314,1.10073635,3152.4,3151.2,5.1699]
[1642603111512,0.00685793,3152.3,3151.2,5.1699]
[1642603111711,1.58705,3152.2,3151.2,5.1699]
[1642603111911,1.36612669,3152.0,3151.0,0.382]
[1642603112112,1.5371,3151.9,3150.7,4.76873685]
[1642603112311,0.79357,3151.7,3150.7,4.76873685]
[1642603112514,0.79357,3151.7,3150.8,0.00166843]
[1642603112714,0.00287896,3151.6,3150.8,0.00166843]
[1642603112982,0.00287896,3151.6,3151.0,1.39780769]
[1642603113183,2.38083,3151.4,3150.8,0.00166843]
[1642603113383,0.79363,3151.2,3150.8,0.00166843]
[1642603113980,0.79363,3151.2,3150.6,1.46666155]
[1642603114186,2.38111,3151.2,3150.6,1.46666155]
[1642603114483,0.79363,3151.2,3150.7,0.00223685]
[1642603115582,0.79366,3151.1,3150.7,0.00223685]
[1642603115788,1.39366,3151.1,3150.7,0.00223685]
[1642603115987,0.6,3151.1,3150.2,0.00507897]
[1642603116191,0.6,3151.1,3150.1,0.00564739]
[1642603116607,1.17183885,3150.6,3150.1,0.00564739]
[1642603117006,1.47183885,3150.6,3150.1,0.00564739]
[1642603117208,0.3,3150.6,3150.1,0.00564739]
[1642603117811,0.79393,3150.5,3150.1,0.00564739]
[1642603118818,1.58775,3150.4,3150.1,0.00564739]
[1642603119019,0.3,3150.3,3150.1,0.00564739]
[1642603120959,0.6,3150.3,3150.0,100.0]
[1642603121157,0.79413,3150.2,3150.0,100.0]
[1642603121361,0.3,3150.1,3150.0,100.0]
[1642603121757,0.79413,3150.2,3150.0,100.0]
[1642603121959,0.79413,3150.2,3150.1,3.18510652]
[1642603122156,0.79413,3150.2,3150.0,100.0]
[1642603122756,1.58758,3150.4,3150.0,102.90105216]
[1642603123160,0.00113685,3150.3,3150.0,102.90105216]
[1642603123758,1.58871685,3150.3,3150.0,102.90105216]
[1642603124210,1.58871685,3150.3,3150.1,3.0002943]
[1642603124410,0.79492685,3150.3,3150.1,3.0002943]
[1642603124612,0.00113685,3150.3,3150.1,3.0002943]
[1642603125912,5.04,3151.3,3150.2,6.5088]
[1642603126114,3.7332,3151.6,3150.3,6.31790625]
[1642603126314,0.00170527,3150.6,3150.3,3.61658861]
[1642603126518,0.00170527,3150.6,3150.5,6.35]
[1642603126711,1.58691,3151.8,3150.5,6.35]
[1642603126911,6.089,3152.1,3150.5,6.35]
[1642603126912,0.79348,3151.5,3150.5,7.14349]
[1642603127110,0.00568423,3151.3,3151.0,2.60965659]
[1642603127310,0.00568423,3151.3,3151.0,1.3351826]
[1642603127512,0.00511581,3151.2,3151.0,1.3351826]
[1642603127855,0.00454738,3151.1,3151.0,1.3351826]
[1642603128461,0.00454738,3151.1,3151.0,6.2851826]
[1642603128661,0.00454738,3151.1,3151.0,7.50448376]
[1642603129065,0.00454738,3151.1,3150.3,0.382]
[1642603129263,0.79369,3151.0,3150.3,0.382]
[1642603129461,0.79766896,3151.0,3150.3,0.382]
[1642603129661,0.3,3150.8,3150.3,0.382]
[1642603129862,0.00341054,3150.9,3150.3,0.382]
[1642603130063,0.00227369,3150.7,3150.4,1.40730367]
[1642603130261,0.00284211,3150.8,3150.5,1.11573594]
[1642603130462,0.00170527,3150.6,3150.5,7.11573594]
[1642603130661,0.79591369,3150.7,3150.5,7.11573594]
[1642603130862,0.00170527,3150.6,3150.5,7.11573594]
[1642603131708,0.00170527,3150.6,3150.4,2.20088457]
[1642603131709,0.00170527,3150.6,3150.4,1.40730367]
[1642603131905,1.58926527,3150.6,3150.4,1.40730367]
[1642603132104,0.00113684,3150.5,3150.4,1.40730367]
[1642603132502,1.58756,3150.6,3150.5,2.75]
[1642603132503,1.53869684,3150.6,3150.5,2.75]
[1642603132703,1.83869684,3150.6,3150.5,2.75]
[1642603134706,1.53869684,3150.6,3150.5,2.75]
[1642603135754,1.83869684,3150.6,3150.4,1.40730367]
[1642603136057,1.83869684,3150.6,3150.0,100.0]
[1642603136058,0.3,3150.5,3150.0,100.0]
[1642603136262,0.79391,3150.4,3150.0,100.0]
[1642603136461,1.58794,3150.3,3150.1,0.00227369]
[1642603136664,1.88794,3150.3,3150.1,0.00227369]
[1642603137863,1.88794,3150.3,3150.0,99.94427369]
[1642603138065,0.7939,3150.2,3150.0,99.94427369]
[1642603138764,3.17573,3150.3,3150.0,99.94427369]
[1642603138968,3.8176,3151.1,3150.1,3.24111328]
[1642603139241,4.1176,3151.1,3150.2,0.04008116]
[1642603139431,0.00113685,3150.3,3150.1,3.25411006]
[1642603139827,0.00113685,3150.3,3150.2,9.06618433]
[1642603140828,3.685e-05,3150.3,3150.2,12.22585139]
[1642603141033,3.685e-05,3150.3,3150.2,15.30929465]
[1642603141231,4.01763685,3151.1,3150.4,0.04954883]
[1642603141430,4.81121685,3151.1,3150.4,3.50263796]
[1642603141628,0.00397896,3151.0,3150.4,3.50263796]
[1642603142031,0.00341054,3150.9,3150.4,4.29622796]
[1642603142231,0.00341054,3150.9,3150.5,3.2419421]
[1642603142530,0.00284211,3150.8,3150.6,6.67846442]
[1642603142733,0.00284211,3150.8,3150.7,9.96970432]
[1642603142962,0.127024,3151.6,3150.7,9.96970432]
[1642603143161,0.127024,3151.6,3150.9,2.32418517]
[1642603143462,0.00682108,3151.5,3151.0,3.10203364]
[1642603143662,0.79351,3151.4,3151.0,3.10203364]
[1642603143862,0.79351,3151.4,3151.0,2.95726666]
[1642603143863,0.79976265,3151.4,3151.0,2.95726666]
[1642603144064,0.79976265,3151.4,3150.9,2.32418517]
[1642603144065,0.00568423,3151.3,3150.9,1.17510329]
[1642603144363,0.00511581,3151.2,3150.9,1.17510329]
[1642603144762,0.00454738,3151.1,3150.3,3.88781036]
[1642603145163,0.00397896,3151.0,3150.9,4.7772108]
[1642603145362,0.00397896,3151.0,3150.9,7.78567182]
[1642603146365,0.00397896,3151.0,3150.9,8.90776379]
[1642603146616,0.00397896,3151.0,3150.9,5.90671139]
[1642603149125,0.00397896,3151.0,3150.9,8.93203199]
[1642603149328,0.00397896,3151.0,3150.9,8.99746644]
[1642603149926,0.00397896,3151.0,3150.9,9.37946644]
[1642603150127,0.00397896,3151.0,3150.9,6.28871139]
[1642603150954,0.00397896,3151.0,3150.9,9.38015352]
[1642603151553,0.00397896,3151.0,3150.9,9.20509222]
[1642603153259,0.00397896,3151.0,3150.9,9.99855222]
[1642603154112,0.00397896,3151.0,3150.9,9.20509222]
[1642603154921,0.00397896,3151.0,3150.9,9.36389222]
[1642603154922,7.896e-05,3151.0,3150.9,9.36389222]
[1642603155116,7.896e-05,3151.0,3150.9,30.67474246]
[1642603155915,7.896e-05,3151.0,3150.9,12.06474246]
[1642603156916,7.896e-05,3151.0,3150.9,6.84165024]
[1642603157217,7.896e-05,3151.0,3150.9,3.982]
[1642603158265,7.896e-05,3151.0,3150.9,0.382]
[1642603158465,7.896e-05,3151.0,3150.6,5.6429379]
[1642603158666,7.896e-05,3151.0,3150.6,4.8493]
[1642603158865,7.896e-05,3151.0,3150.7,0.00162631]
[1642603159467,7.896e-05,3151.0,3150.7,0.79525101]
[1642603159769,7.896e-05,3151.0,3150.8,1.44956084]
[1642603160166,7.896e-05,3151.0,3150.8,0.00105789]
[1642603160969,7.896e-05,3151.0,3150.8,2.38154919]
[1642603161946,7.896e-05,3151.0,3150.8,1.58805919]